lending/lending_fUSD_20240926
["ID","MTS","AMOUNT","RATE_DAILY","PERIOD"]
[339200957,1727308811094,750.0,0.00011,2]
[339200984,1727309135954,1050.0,0.00011,2]
[339200994,1727309373373,1064.94,9.709e-05,2]
[339201000,1727309431277,150.0,0.00017946,120]
[339201010,1727309432286,-457.382313,0.00011573,2]
[339201011,1727309432296,-248.72800133,0.00011611,2]
[339201012,1727309432338,-1.27199867,0.00011611,2]
[339201013,1727309432348,-345.02,0.00011631,2]
[339201014,1727309432358,-733.22,0.00011637,2]
[339201015,1727309432368,-300.0,0.00011638,2]
[339201016,1727309432377,-1077.18800133,0.00011639,2]
[339201017,1727309432394,-1440.43885463,0.00011639,2]
[339201018,1727309432405,-423.69618579,0.00011639,2]
[339201019,1727309432500,-3331.88002399,0.00011639,2]
[339201020,1727309432512,-1396.35356278,0.00011639,2]
[339201021,1727309432523,-2195.73008022,0.00011639,2]
[339201022,1727309432556,-262.70659263,0.00011639,2]
[339201023,1727309432570,-7703.13545526,0.00011639,2]
[339201024,1727309432613,-1329.28402773,0.00011639,2]
[339201027,1727309438889,-4739.58721564,0.00011639,2]
[339201028,1727309438898,-164.41,0.0001164,2]
[339201029,1727309438908,-3766.00155821,0.00011659,2]
[339201036,1727309440415,-6683.29844179,0.00011659,2]
[339201037,1727309440431,-600.0,0.00011668,2]
[339201038,1727309440440,-446.2,0.00011668,2]
[339201039,1727309440449,-196.81,0.00011668,2]
[339201040,1727309440458,-220.32681932,0.00011725,2]
[339201041,1727309440467,-250.0,0.00011729,2]
[339201042,1727309440476,-250.0,0.0001174,2]
[339201043,1727309440486,-3764.54,0.00011785,2]
[339201044,1727309440495,-150.01,0.00011793,2]
[339201045,1727309440505,-400.0,0.00011862,2]
[339201046,1727309440515,-228.39,0.00011865,2]
[339201047,1727309440524,-170.17,0.00011961,2]
[339201048,1727309440535,-1064.94,0.00011973,2]
[339201049,1727309440544,-698.9,0.00012055,2]
[339201050,1727309440554,-150.0,0.00012086,2]
[339201051,1727309440565,-11156.76,0.00012087,2]
[339201052,1727309440575,-1172.73,0.00012087,2]
[339201053,1727309440584,-19999.99,0.00012087,2]
[339201054,1727309440594,-167.83,0.00012445,2]
[339201055,1727309440603,-10000.0,0.000125,15]
[339201056,1727309440612,-10000.0,0.000125,14]
[339201057,1727309440622,-150.0,0.00012552,2]
[339201058,1727309440631,-150.0,0.00012552,2]
[339201059,1727309440650,-150.0,0.00012552,2]
[339201060,1727309440659,-448.0,0.00012694,2]
[339201061,1727309440669,-1420.0,0.00012694,2]
[339201062,1727309440678,-558.0,0.00012694,2]
[339201063,1727309440687,-1172.61,0.00012694,2]
[339201064,1727309440697,-3348.0,0.00012694,2]
[339201065,1727309440706,-807.0,0.00012694,2]
[339201066,1727309440715,-5869.0,0.00012694,2]
[339201067,1727309440725,-6273.404,0.00012694,2]
[339201068,1727309440735,-150.0,0.00012694,2]
[339201070,1727309440744,-1147.0,0.00012694,2]
[339201072,1727309440754,-351.03,0.00012732,2]
[339201074,1727309440763,-207.786,0.00012732,2]
[339201076,1727309440772,-500.0,0.0001275,2]
[339201078,1727309440781,-420.0,0.0001278,2]
[339201080,1727309440791,-1413.138,0.00012795,2]
[339201082,1727309440800,-500.0,0.00012797,2]
[339201084,1727309440809,-2000.0,0.00012797,2]
[339201086,1727309440818,-500.0,0.00012797,2]
[339201087,1727309440828,-500.0,0.00012797,2]
[339201088,1727309440837,-2496.2546,0.000128,2]
[339201089,1727309440846,-2000.0,0.000128,2]
[339201090,1727309440856,-4758.962032,0.000128,2]
[339201091,1727309440865,-4323.2982,0.000128,2]
[339201092,1727309440875,-376.173,0.000128,2]
[339201093,1727309440887,-207.95966001,0.000128,2]
[339201094,1727309440896,-162.11399906,0.000128,2]
[339201095,1727309440906,-624.68,0.000128,2]
[339201096,1727309440915,-1006.5,0.000128,2]
[339201097,1727309440924,-6375.6339,0.000128,2]
[339201098,1727309440934,-886.0,0.000128,3]
[339201099,1727309440944,-168.28166522,0.000128,2]
[339201100,1727309440953,-251.4043438,0.000128,2]
[339201101,1727309440963,-1770.64005544,0.000128,2]
[339201102,1727309440973,-203.49689501,0.000128,2]
[339201103,1727309440982,-328.26746248,0.000128,2]
[339201104,1727309440991,-251.40434379,0.00012814,2]
[339201105,1727309441002,-251.40434379,0.00012829,2]
[339201106,1727309441011,-251.40434379,0.00012843,2]
[339201107,1727309441020,-1770.64005542,0.0001285,2]
[339201108,1727309441029,-203.49689499,0.0001285,2]
[339201109,1727309441039,-251.40434379,0.00012857,2]
[339201110,1727309441049,-14808.33,0.0001287,2]
[339201111,1727309441058,-251.40434379,0.00012871,2]
[339201112,1727309441068,-500.0,0.00012873,2]
[339201113,1727309441077,-500.0,0.00012873,2]
[339201114,1727309441087,-251.40434379,0.00012886,2]
[339201115,1727309441096,-2002.41,0.0001289,2]
[339201116,1727309441106,-151.63,0.0001289,2]
[339201117,1727309441116,-1858.0,0.0001289,8]
[339201118,1727309441125,-1085.0,0.0001289,3]
[339201119,1727309441137,-1261.0,0.00012894,2]
[339201120,1727309441147,-625.0,0.00012894,2]
[339201121,1727309441156,-2258.2271277,0.00012895,2]
[339201122,1727309441165,-5973.5537387,0.00012895,2]
[339201123,1727309441175,-774.6934055,0.00012895,2]
[339201124,1727309441184,-1096.38479334,0.00012899,3]
[339201125,1727309441194,-1204.34648196,0.00012899,2]
[339201126,1727309441203,-624.0,0.000129,2]
[339201127,1727309441212,-14700.87,0.000129,2]
[339201128,1727309441221,-153783.97644322,0.000129,2]
[339201129,1727309441233,-102800.52835454,0.000129,2]
[339201130,1727309441262,-2398.50078446,0.000129,2]
[339201131,1727309441274,-2988.78326536,0.000129,2]
[339201159,1727309443633,-448.86288391,0.000129,2]
[339201160,1727309443646,-928.061948,0.000129,2]
[339201165,1727309446426,-959.66047797,0.000129,2]
[339201166,1727309446481,-658.07952203,0.000129,2]
[339201167,1727309446537,-10048.63,0.000129,2]
[339201169,1727309550761,150.0,0.00015447,120]
[339201171,1727309568438,153.26,0.00010959,2]
[339201172,1727309649651,150.0,0.000111,2]
[339201174,1727309791015,150.0,0.00016453,120]
[339201178,1727309928644,1017.09,9.977e-05,2]
[339201179,1727309962959,2000.0,0.00021,60]
[339201182,1727310123649,2000.0,0.00021,60]
[339201183,1727310132576,2000.0,0.00021,60]
[339201184,1727310140236,2000.0,0.00021,60]
[339201185,1727310148298,2000.0,0.00021,60]
[339201186,1727310155432,2000.0,0.00021,60]
[339201187,1727310164275,2000.0,0.00021,60]
[339201188,1727310171773,2000.0,0.00021,60]
[339201189,1727310181827,2000.0,0.00021,60]
[339201190,1727310188589,2000.0,0.00021,60]
[339201191,1727310195681,175.14,0.00010959,2]
[339201192,1727310204881,2000.0,0.00021,60]
[339201193,1727310212263,2000.0,0.00021,60]
[339201207,1727310336541,22000.0,9e-05,2]
[339201216,1727310390769,150.0,0.0001416,120]
[339201217,1727310410905,288.0,0.00021,60]
[339201218,1727310431394,750.0,0.00011,2]
[339201219,1727310510741,150.0,0.00018117,120]
[339201223,1727310568858,966.23,9.6e-05,2]
[339201224,1727310571345,150.0,0.00020991,120]
[339201235,1727310631450,-590.16069176,0.00011444,2]
[339201236,1727310631461,-739.69628748,0.00011444,2]
[339201237,1727310631472,-925.07724057,0.00011444,2]
[339201238,1727310631483,-912.38802639,0.00011444,2]
[339201239,1727310631494,-966.43463374,0.00011444,2]
[339201240,1727310631505,-115.24867506,0.00011444,2]
[339201241,1727310631515,-250.0,0.00011501,2]
[339201242,1727310631524,-252.78626785,0.00011531,2]
[339201243,1727310631540,-47.21373215,0.00011531,2]
[339201244,1727310631549,-222.0,0.00011532,2]
[339201245,1727310631558,-23900.0,0.00011532,2]
[339201246,1727310631570,-182.71,0.00011651,2]
[339201247,1727310631581,-222.0,0.00011663,2]
[339201248,1727310631591,-336.0,0.00011664,2]
[339201249,1727310631601,-1000.0,0.00011666,2]
[339201250,1727310631610,-250.0,0.0001175,2]
[339201251,1727310631619,-222.0,0.00011775,2]
[339201252,1727310631628,-250.0,0.00011775,2]
[339201253,1727310631637,-966.23,0.00011864,2]
[339201254,1727310631646,-222.0,0.00011917,2]
[339201255,1727310631656,-228.02,0.00011925,2]
[339201256,1727310631666,-375.4900986,0.00011932,2]
[339201257,1727310631676,-5574.703499,0.00012,2]
[339201259,1727310631686,-333.0,0.00012019,2]
[339201261,1727310631696,-355.0,0.00012022,2]
[339201263,1727310631705,-388.0,0.00012032,2]
[339201265,1727310631714,-225.0,0.00012041,2]
[339201267,1727310631724,-455.0,0.00012042,2]
[339201269,1727310631733,-419.1015651,0.00012042,2]
[339201271,1727310631742,-167.33,0.00012445,2]
[339201273,1727310631751,-420.0,0.00012665,2]
[339201275,1727310631762,-161.26,0.00012718,2]
[339201277,1727310631773,-1310.1768,0.0001277,2]
[339201279,1727310631784,-166.229,0.0001277,2]
[339201281,1727310631793,-423.894,0.0001277,2]
[339201284,1727310631802,-53314.66793769,0.0001278,2]
[339201287,1727310631811,-4263.75296763,0.00012784,2]
[339201290,1727310631820,-500.0,0.00012797,2]
[339201293,1727310631829,-500.0,0.00012797,2]
[339201295,1727310631838,-500.0,0.00012797,2]
[339201297,1727310631848,-4263.75296758,0.00012797,2]
[339201300,1727310631859,-27360.46743225,0.000128,2]
[339201302,1727310631871,-1316.83678172,0.000128,2]
[339201305,1727310631893,-1301.36398603,0.000128,2]
[339201307,1727310631906,-901.7821,0.000128,2]
[339201308,1727310631917,-7500.0,0.000128,2]
[339201309,1727310631926,-162.11399905,0.000128,2]
[339201310,1727310631935,-207.95966001,0.000128,2]
[339201311,1727310631945,-161.47925807,0.000128,2]
[339201312,1727310631954,-203.03879075,0.000128,2]
[339201313,1727310631963,-328.26746248,0.000128,2]
[339201314,1727310631973,-4263.75296758,0.0001281,2]
[339201315,1727310631984,-4263.75296758,0.00012823,2]
[339201316,1727310631994,-4263.75296758,0.00012836,2]
[339201317,1727310632003,-4263.75296758,0.00012848,2]
[339201318,1727310632013,-4263.75296758,0.00012861,2]
[339201319,1727310632220,-150.0,0.00012866,2]
[339201320,1727310632235,-500.0,0.00012873,2]
[339201321,1727310632245,-4263.75296758,0.00012874,2]
[339201322,1727310632256,-1500.0,0.0001288,2]
[339201323,1727310632267,-797.826,0.00012884,2]
[339201324,1727310632276,-1276.561,0.00012884,2]
[339201325,1727310632286,-448.0,0.00012884,2]
[339201326,1727310632296,-150.0,0.00012884,2]
[339201327,1727310632305,-5869.0,0.00012884,2]
[339201328,1727310632316,-4263.75296758,0.00012887,2]
[339201329,1727310632327,-151.63,0.0001289,2]
[339201330,1727310632338,-180.0,0.00012895,2]
[339201331,1727310632349,-6917.439797,0.00012895,2]
[339201332,1727310632358,-1694.3100808,0.00012895,2]
[339201333,1727310632367,-2628.908258,0.00012895,2]
[339201334,1727310632376,-776.5692588,0.00012895,2]
[339201335,1727310632385,-24439.17800544,0.00012898,2]
[339201336,1727310632394,-446.05425258,0.00012899,2]
[339201337,1727310632404,-7539.41819129,0.000129,2]
[339201338,1727310632413,-612.0,0.000129,2]
[339201339,1727310632422,-147824.70444524,0.000129,2]
[339201340,1727310632433,-530.14499983,0.000129,2]
[339201341,1727310632445,-704.86,0.000129,2]
[339201342,1727310632456,-508.47198714,0.000129,2]
[339201343,1727310632474,-730.03886704,0.000129,2]
[339201344,1727310632486,-798.80351269,0.000129,2]
[339201348,1727310639515,-1233.87702804,0.000128,2]
[339201349,1727310639527,-638.5394069,0.00012884,2]
[339201350,1727310639541,-477.13840456,0.00012884,2]
[339201361,1727310642677,-304.32218854,0.00012884,2]
[339201362,1727310642690,-297.36950172,0.00012899,2]
[339201363,1727310642699,-140.44896853,0.000129,2]
[339201364,1727310642712,-582.61133578,0.000129,2]
[339201365,1727310642723,-63349.0,0.000129,2]
[339201374,1727310751204,150.0,0.00016309,120]
[339201375,1727310861967,266.22,0.00010959,2]
[339201377,1727310930775,150.0,0.00018749,120]
[339201378,1727310946091,1050.0,0.00011,2]
[339201379,1727311050961,150.0,0.00014594,120]
[339201382,1727311110924,150.0,0.00016901,120]
[339201383,1727311114903,921.91,9.91e-05,2]
[339201384,1727311170752,150.0,0.00018808,120]
[339201385,1727311291269,150.0,0.00020077,120]
[339201386,1727311350774,150.0,0.00020344,120]
[339201387,1727311428611,-3001.78383708,0.00013,15]
[339201388,1727311472035,-10000.0,0.00013,14]
[339201395,1727311592357,160.45,0.00010959,2]
[339201396,1727311711163,150.0,0.00019905,120]
[339201397,1727311726253,927.22,9.727e-05,2]
[339201417,1727311831684,-155.11,0.00011559,2]
[339201418,1727311831696,-500.0,0.00011591,2]
[339201419,1727311831707,-200.0,0.00011597,2]
[339201420,1727311831718,-833.86,0.00011618,2]
[339201421,1727311831728,-1852.42,0.00011619,2]
[339201422,1727311831741,-300.0,0.00011621,2]
[339201423,1727311831750,-939.63268136,0.00011622,2]
[339201424,1727311831795,-295.5,0.00011622,2]
[339201425,1727311831806,-432.57827747,0.00011622,2]
[339201426,1727311831905,-14458.49975,0.00011622,2]
[339201450,1727311837777,-646.8411,0.00011622,2]
[339201451,1727311837993,-7126.94819117,0.00011622,2]
[339201452,1727311838003,-800.0,0.00011659,2]
[339201453,1727311838012,-250.0,0.00011662,2]
[339201454,1727311838022,-259.81,0.00011692,2]
[339201455,1727311838031,-1054.88,0.00011697,2]
[339201456,1727311838041,-430.74,0.00011752,2]
[339201457,1727311838053,-333.19,0.00011775,2]
[339201458,1727311838063,-250.0,0.00011797,2]
[339201459,1727311838072,-150.0,0.00011836,2]
[339201460,1727311838082,-183.0,0.00011866,2]
[339201461,1727311838091,-356.96,0.00011914,2]
[339201462,1727311838101,-200.0,0.00011923,2]
[339201463,1727311838110,-927.22,0.00011991,2]
[339201464,1727311838119,-150.47,0.00012013,2]
[339201465,1727311838131,-167.9,0.00012445,2]
[339201466,1727311838141,-287.75929226,0.00012626,2]
[339201467,1727311838151,-1135.27346805,0.00012642,2]
[339201468,1727311838161,-1104.79426109,0.00012642,2]
[339201469,1727311838170,-978.0114,0.00012723,2]
[339201470,1727311838180,-150.0,0.00012725,2]
[339201471,1727311838189,-150.0,0.00012735,2]
[339201472,1727311838199,-420.0,0.00012762,2]
[339201473,1727311838208,-150.0,0.00012775,2]
[339201474,1727311838217,-339.115,0.00012788,2]
[339201475,1727311838227,-500.0,0.00012797,2]
[339201476,1727311838236,-7500.0,0.000128,2]
[339201477,1727311838246,-426.37529683,0.000128,2]
[339201478,1727311838255,-251.40434379,0.000128,2]
[339201479,1727311838265,-822.58468536,0.000128,2]
[339201480,1727311838274,-161.47925807,0.000128,2]
[339201481,1727311838283,-321.43805409,0.000128,2]
[339201482,1727311838292,-426.37529675,0.00012811,2]
[339201483,1727311838304,-426.37529675,0.00012822,2]
[339201484,1727311838314,-426.37529675,0.00012833,2]
[339201485,1727311838323,-426.37529675,0.00012844,2]
[339201486,1727311838333,-161.26,0.00012845,2]
[339201487,1727311838342,-150.0,0.00012847,2]
[339201488,1727311838352,-822.58468534,0.0001285,2]
[339201489,1727311838362,-150.0,0.00012854,2]
[339201490,1727311838371,-426.37529675,0.00012856,2]
[339201491,1727311838381,-426.37529675,0.00012867,2]
[339201492,1727311838390,-500.0,0.00012873,2]
[339201493,1727311838399,-1081.0,0.00012874,2]
[339201494,1727311838409,-272.035,0.00012874,2]
[339201495,1727311838418,-150.0,0.00012874,2]
[339201496,1727311838428,-150.0,0.00012875,2]
[339201497,1727311838437,-426.37529675,0.00012878,2]
[339201498,1727311838447,-426.37529675,0.00012889,2]
[339201499,1727311838456,-151.64,0.0001289,2]
[339201500,1727311838466,-2504.6129653,0.00012895,2]
[339201501,1727311838475,-297.36950172,0.00012899,2]
[339201502,1727311838484,-600.0,0.000129,2]
[339201503,1727311838494,-25271.74222294,0.000129,2]
[339201504,1727311838536,-1030.58242837,0.000129,2]
[339201506,1727311839594,-6510.00002536,0.000129,2]
[339201507,1727311839605,-406.43925125,0.000129,2]
[339201508,1727311839811,-1135.575,0.000129,2]
[339201509,1727311839822,-630.63,0.000129,2]
[339201516,1727311842776,-412.475148,0.00011564,2]
[339201517,1727311842785,-1163.274852,0.000129,2]
[339201518,1727311842830,-124049.70781778,0.000129,2]
[339201519,1727311842886,-1260.0,0.000129,2]
[339201520,1727311845829,-43699.98741445,0.000129,2]
[339201521,1727311845849,-1280.81103182,0.000129,2]
[339201522,1727311845862,-579.70000456,0.000129,2]
[339201523,1727312011117,150.0,0.00015619,120]
[339201524,1727312050607,2984.56014785,0.00011,2]
[339201526,1727312131130,150.0,0.00018904,120]
[339201528,1727312243854,163.08,0.00010959,2]
[339201529,1727312250756,200.0,0.00021,60]
[339201530,1727312341638,984.75,9.36e-05,2]
[339201531,1727312611078,150.0,0.00018967,120]
[339201538,1727312755183,1050.0,0.00011,2]
[339201540,1727312785611,167.17,0.00010959,2]
[339201541,1727312791108,150.0,0.00014215,120]
[339201545,1727312952736,157.73970547,0.00011024,2]
[339201546,1727312971074,150.0,0.00014753,120]
[339201547,1727313013055,555.0264,0.00011105,2]
[339201548,1727313018747,985.48,9.328e-05,2]
[339201549,1727313031073,150.0,0.00015104,120]
[339201576,1727313035631,-383.37,0.00011118,2]
[339201578,1727313035642,-250.0,0.00011124,2]
[339201580,1727313035652,-150.0,0.00011147,2]
[339201582,1727313035662,-4364.13,0.00011148,2]
[339201584,1727313035672,-300.0,0.00011204,2]
[339201586,1727313035681,-23900.0,0.00011205,2]
[339201588,1727313035691,-285.56,0.00011215,2]
[339201590,1727313035701,-250.0,0.00011222,2]
[339201592,1727313035711,-2800.25,0.00011234,2]
[339201594,1727313035721,-305.69,0.00011269,2]
[339201596,1727313035730,-250.0,0.00011278,2]
[339201598,1727313035743,-985.48,0.00011592,2]
[339201600,1727313035752,-518.82,0.00011707,2]
[339201602,1727313035762,-518.82,0.0001171,2]
[339201604,1727313035771,-518.82,0.00011713,2]
[339201606,1727313035780,-518.82,0.00011716,2]
[339201608,1727313035790,-518.82,0.00011719,2]
[339201610,1727313035799,-518.82,0.00011722,2]
[339201612,1727313035809,-518.82,0.00011725,2]
[339201613,1727313035819,-518.82,0.00011728,2]
[339201615,1727313035828,-518.82,0.00011731,2]
[339201617,1727313035838,-518.82,0.00011734,2]
[339201619,1727313035847,-518.82,0.00011737,2]
[339201621,1727313035856,-518.82,0.00011741,2]
[339201623,1727313035865,-518.82,0.00011744,2]
[339201625,1727313035875,-150.0,0.00011744,2]
[339201627,1727313035883,-1000.0,0.00011745,2]
[339201628,1727313035893,-518.82,0.00011747,2]
[339201630,1727313035902,-518.82,0.0001175,2]
[339201632,1727313035912,-518.82,0.00011753,2]
[339201634,1727313035920,-518.82,0.00011756,2]
[339201636,1727313035930,-518.82,0.00011759,2]
[339201638,1727313035939,-518.82,0.00011762,2]
[339201640,1727313035949,-518.82,0.00011765,2]
[339201642,1727313035959,-247.55151735,0.000118,2]
[339201644,1727313035968,-167.13,0.00011901,2]
[339201646,1727313035978,-180.0,0.00012238,2]
[339201648,1727313035990,-2835.2968292,0.00012243,2]
[339201650,1727313035999,-644.02,0.00012329,2]
[339201652,1727313036008,-161.52,0.00012332,2]
[339201654,1727313036017,-167.37,0.00012445,2]
[339201656,1727313036027,-167.83,0.00012445,2]
[339201658,1727313036036,-285.56,0.00012616,2]
[339201660,1727313036046,-305.69,0.00012678,2]
[339201662,1727313036056,-2167.2867,0.000127,2]
[339201664,1727313036065,-150.0,0.00012788,2]
[339201666,1727313036075,-500.0,0.00012796,2]
[339201668,1727313036084,-500.0,0.00012797,2]
[339201670,1727313036094,-500.0,0.00012797,2]
[339201672,1727313036103,-500.0,0.00012797,2]
[339201674,1727313036114,-32608.0863,0.000128,2]
[339201676,1727313036123,-606.1316,0.000128,2]
[339201678,1727313036133,-1310.1768,0.000128,2]
[339201680,1727313036142,-568.0738,0.000128,2]
[339201682,1727313036151,-3091.8919,0.000128,2]
[339201684,1727313036160,-500.0,0.000128,2]
[339201686,1727313036170,-889.0117,0.000128,2]
[339201688,1727313036182,-4052.35067199,0.000128,2]
[339201690,1727313036194,-2534.578025,0.000128,2]
[339201692,1727313036206,-913.07130301,0.000128,2]
[339201694,1727313036215,-1261.2979,0.000128,2]
[339201696,1727313036224,-2015.60377815,0.000128,2]
[339201698,1727313036233,-1593.94365178,0.000128,2]
[339201700,1727313036245,-203.03879075,0.000128,2]
[339201701,1727313036254,-883.80780918,0.000128,2]
[339201704,1727313036263,-2422.52877788,0.000128,2]
[339201705,1727313036273,-2015.60377812,0.00012811,2]
[339201707,1727313036282,-2015.60377812,0.00012822,2]
[339201709,1727313036291,-472.673,0.00012823,2]
[339201711,1727313036300,-167.936,0.00012823,2]
[339201713,1727313036310,-1258.27807627,0.00012833,2]
[339201715,1727313036321,-377.86782155,0.00012833,2]
[339201718,1727313036332,-379.4578803,0.00012833,2]
[339201720,1727313036342,-1512.50341706,0.00012844,2]
[339201722,1727313036359,-169.43856542,0.000128,2]
[339201724,1727313036374,-503.10036106,0.00012844,2]
[339201726,1727313036384,-883.80780917,0.0001285,2]
[339201728,1727313036393,-2015.60377812,0.00012856,2]
[339201730,1727313036402,-2015.60377812,0.00012867,2]
[339201732,1727313036412,-1115.678,0.00012874,2]
[339201734,1727313036421,-133.41721989,0.00012874,2]
[339201736,1727313036432,-801.18778011,0.00012874,2]
[339201738,1727313036442,-214.86184899,0.00012874,2]
[339201741,1727313036454,-337.13815101,0.00012874,2]
[339201742,1727313036462,-1663.594,0.00012874,2]
[339201744,1727313036472,-866.06111501,0.00012878,2]
[339201747,1727313036483,-463.05,0.00012878,2]
[339201797,1727313038079,-510.8948554,0.00012243,2]
[339201798,1727313038089,-499.32094258,0.00012878,2]
[339201799,1727313038254,-187.17172053,0.00012878,2]
[339201800,1727313038264,-94.96319358,0.00012889,2]
[339201816,1727313039942,-1013.3555794,0.00012889,2]
[339201817,1727313039953,-907.28500514,0.00012889,2]
[339201818,1727313039962,-1615.19115138,0.0001289,3]
[339201819,1727313040119,-952.33516458,0.0001289,3]
[339201820,1727313040130,-606.6177658,0.0001289,3]
[339201821,1727313040183,-899.75580139,0.0001289,3]
[339201822,1727313040194,-1034.355,0.0001289,3]
[339201826,1727313042961,-891.74511685,0.0001289,3]
[339201827,1727313042973,-330.46273508,0.00012899,2]
[339201828,1727313042984,-1035.93702855,0.00012899,2]
[339201829,1727313043006,-336.25265811,0.00012899,2]
[339201830,1727313043016,-297.36950172,0.00012899,2]
[339201831,1727313043025,-823.37784005,0.00012899,2]
[339201832,1727313043037,-1260.0,0.00012899,2]
[339201834,1727313045942,-300.0,0.000119,4]
[339201835,1727313045951,-2856.44247828,0.00012899,2]
[339201836,1727313045964,-6332.64,0.00012899,2]
[339201837,1727313045975,-251.6259098,0.00012899,2]
[339201838,1727313045986,-497.40455604,0.00012899,2]
[339201839,1727313046015,-23633.918396,0.00012899,2]
[339201840,1727313046068,-2484.54878683,0.00012899,2]
[339201841,1727313046244,-700.0,0.00012,4]
[339201842,1727313046254,-468.793901,0.00012078,2]
[339201843,1727313046263,-5131.656099,0.00012899,2]
[339201844,1727313061849,500.0,0.00010164,2]
[339201845,1727313076492,9528.17581389,5.781e-05,7]
[339201846,1727313091092,150.0,0.00018178,120]
[339201847,1727313091696,500.0,0.00010164,2]
[339201849,1727313126086,14777.3073,0.00011018,2]
[339201850,1727313131003,2004.7317,0.00011105,2]
[339201853,1727313211071,150.0,0.00019013,120]
[339201855,1727313341503,175.14,0.00010959,2]
[339202043,1727313451077,150.0,0.00016073,120]
[339202045,1727313593815,1012.77,9.272e-05,2]
[339202046,1727313640119,-854.64429802,0.00011148,2]
[339202047,1727313640353,-200.0,0.00011169,2]
[339202048,1727313682974,179.99297769,0.00011148,2]
[339202049,1727313811111,150.0,0.00016933,120]
[339202051,1727313871145,150.0,0.00016885,120]
[339202052,1727313875375,250.0,0.00011183,2]
[339202053,1727313891553,1214.96,0.00011192,2]
[339202054,1727313901954,267.28,0.00010959,2]
[339202055,1727313916384,155.61,0.00011181,2]
[339202056,1727313916628,2000.0,0.00011181,2]
[339202067,1727313951237,304.79,0.00011177,2]
[339202068,1727313952313,664.92,0.00011177,2]
[339202069,1727313960831,9135.57,0.00011195,2]
[339202070,1727313991083,150.0,0.0001769,120]
[339202073,1727314104839,150.0,0.00011186,2]
[339202074,1727314170930,2112.09,0.00011156,2]
[339202075,1727314206533,165.8,0.00011195,2]
[339202076,1727314212444,1010.54,9.243e-05,2]
[339202077,1727314224828,500.0,0.00010164,2]
[339202084,1727314232344,-250.0,0.00011205,2]
[339202085,1727314232354,-1069.9,0.00011222,2]
[339202086,1727314232366,-250.0,0.00011223,2]
[339202087,1727314232376,-300.0,0.00011225,2]
[339202088,1727314232385,-5000.0,0.00011226,2]
[339202089,1727314232395,-6655.031276,0.00011227,2]
[339202090,1727314232407,-2110.05004807,0.00011227,2]
[339202098,1727314238651,-250.0,0.00011227,2]
[339202099,1727314238775,-1185.34288774,0.00011227,2]
[339202100,1727314240193,-793.54222784,0.00011227,2]
[339202101,1727314240518,-2900.44,0.00011227,2]
[339202112,1727314243555,-6334.49094059,0.00011227,2]
[339202113,1727314243679,-2261.48763177,0.00011227,2]
[339202122,1727314246220,-396.70692598,0.00011227,2]
[339202132,1727314261632,500.0,0.00010164,2]
[339202133,1727314261669,502.30800014,0.00010164,2]
[339202164,1727314497560,200.76346064,0.00011155,2]
[339202165,1727314508444,859.4022,0.00011142,2]
[339202185,1727314540488,161.01,0.00010959,2]
[339202186,1727314563884,1050.0,0.00011,2]
[339202187,1727314564330,168.15,0.00011194,2]